bitfinex-derivatives/quotes_SOLF0:USTF0_20250928
["timestamp","ask_amount","ask_price","bid_price","bid_amount"]
[1759102471353,7.51,210.41,210.31,7.46]
[1759102472255,7.51,210.4,210.31,7.46]
[1759102474460,7.51,210.4,210.34,7.46]
[1759102475254,4.276,210.39,210.34,7.46]
[1759102475448,7.51,210.4,210.33,7.46]
[1759102477759,4.276,210.39,210.33,7.46]
[1759102478450,11.7862,210.38,210.33,7.46]
[1759102478650,11.7862,210.38,210.32,62.0]
[1759102478857,11.7862,210.38,210.33,7.46]
[1759102479160,7.51,210.38,210.32,62.0]
[1759102479365,7.51,210.38,210.33,7.46]
[1759102479556,7.51,210.38,210.32,62.0]
[1759102479749,11.7853,210.42,210.33,7.46]
[1759102479958,7.51,210.42,210.33,7.46]
[1759102480354,4.2758,210.4,210.33,7.46]
[1759102480555,11.7858,210.4,210.33,7.46]
[1759102481152,4.276,210.39,210.33,7.46]
[1759102481852,7.51,210.37,210.3,7.46]
[1759102482553,11.7857,210.4,210.29,7.46]
[1759102483355,4.276,210.39,210.32,7.46]
[1759102484957,7.51,210.38,210.32,7.46]
[1759102486366,7.51,210.36,210.28,7.46]
[1759102486863,7.51,210.36,210.28,11.7379]
[1759102487063,7.51,210.36,210.28,7.46]
[1759102487265,7.51,210.36,210.29,4.2778]
[1759102489563,7.51,210.36,210.29,66.2778]
[1759102490164,27.07545101,210.86,210.29,66.2778]
[1759102490165,11.7857,210.4,210.3,7.46]
[1759102490364,7.51,210.4,210.3,7.46]
[1759102490968,7.51,210.4,210.32,11.7371]
[1759102491770,11.7849,210.44,210.32,7.46]
[1759102492262,7.51,210.44,210.32,116.46]
[1759102492468,4.2752,210.43,210.33,11.7369]
[1759102493671,4.2754,210.42,210.33,11.7369]
[1759102493871,11.9154,210.42,210.33,11.7369]
[1759102496872,11.9154,210.42,210.34,7.3]
[1759102499467,4.2756,210.41,210.34,7.3]
[1759102499871,7.64,210.4,210.31,4.2774]
[1759102500079,7.64,210.4,210.3,7.3]
[1759102500470,4.2764,210.37,210.3,7.3]
[1759102500666,7.64,210.36,210.26,7.3]
[1759102501076,7.64,210.41,210.27,7.3]
[1759102502377,4.2761,210.38,210.3,4.2775]
[1759102502578,7.64,210.41,210.3,4.2775]
[1759102502973,11.9164,210.37,210.29,7.3]
[1759102504177,7.64,210.37,210.29,7.3]
[1759102504371,9.02853737,210.37,210.29,7.3]
[1759102504680,9.02853737,210.37,210.27,1.38853737]
[1759102505270,4.2772,210.33,210.27,1.38853737]
[1759102505877,1.38853737,210.37,210.27,1.38853737]
[1759102505878,1.38853737,210.37,210.28,7.3]
[1759102506276,7.64,210.38,210.3,8.68853737]
[1759102506981,11.9162,210.38,210.3,12.96603737]
[1759102507480,11.9162,210.38,210.31,62.0]
[1759102509681,1.38853737,210.38,210.3,7.3]
[1759102509879,7.64,210.37,210.3,7.3]
[1759102510584,4.2766,210.36,210.3,7.3]
[1759102511587,11.8366,210.36,210.3,7.3]
[1759102513384,5.66463737,210.38,210.3,7.3]
[1759102513980,4.2761,210.38,210.31,1.38853737]
[1759102515585,4.2761,210.38,210.3,11.5776]
[1759102515789,4.2761,210.38,210.3,12.96613737]
[1759102515990,7.56,210.39,210.3,8.68853737]
[1759102516791,7.56,210.34,210.3,8.68853737]
[1759102517792,7.56,210.34,210.3,1.38853737]
[1759102517994,7.56,210.34,210.31,7.38]
[1759102518191,7.56,210.34,210.28,70.76853737]
[1759102521092,11.8363,210.37,210.28,70.76853737]
[1759102522597,4.2766,210.36,210.28,75.04643737]
[1759102524399,4.2768,210.35,210.28,70.76853737]
[1759102524601,12.2168,210.35,210.28,70.76853737]
[1759102525199,4.277,210.34,210.28,70.76853737]
[1759102526604,4.2773,210.33,210.28,70.76853737]
[1759102526798,12.2173,210.33,210.28,63.38853737]
[1759102527004,12.2173,210.33,210.29,7.41]
[1759102527501,7.94,210.32,210.29,7.41]
[1759102528299,7.94,210.32,210.28,1.38853737]
[1759102528511,12.2175,210.32,210.26,1.38853737]
[1759102528700,12.2175,210.32,210.25,7.41]
[1759102528902,12.2175,210.32,210.26,1.38853737]
[1759102530211,7.94,210.32,210.25,7.41]
[1759102530408,7.94,210.32,210.26,1.38853737]
[1759102531208,12.2173,210.32,210.26,1.38853737]
[1759102531807,4.2776,210.31,210.26,1.38853737]
[1759102532008,12.2176,210.31,210.27,7.41]
[1759102532610,7.94,210.3,210.27,7.41]
[1759102536211,7.94,210.3,210.26,1.38853737]
[1759102536412,7.94,210.3,210.27,7.41]
[1759102537211,7.94,210.3,210.26,1.38853737]
[1759102537410,7.94,210.3,210.27,7.41]
[1759102538610,4.2778,210.3,210.22,14.30084561]
[1759102538806,7.94,210.3,210.23,7.41]
[1759102539113,7.94,210.3,210.23,8.79853737]
[1759102539607,7.94,210.27,210.23,8.79853737]
[1759102540210,7.94,210.27,210.24,7.41]
[1759102544313,7.94,210.31,210.27,7.41]
[1759102544513,7.94,210.34,210.27,11.6881]
[1759102544817,7.94,210.42,210.31,7.41]
[1759102545012,7.94,210.39,210.31,7.41]
[1759102545614,7.94,210.39,210.32,1.38853737]
[1759102546211,7.94,210.39,210.32,5.66563737]
[1759102547613,9.32853737,210.39,210.31,7.41]
[1759102548219,9.32853737,210.39,210.29,4.2777]
[1759102548617,7.94,210.36,210.29,4.2777]
[1759102554526,12.2166,210.36,210.28,7.41]
[1759102554724,1.38853737,210.33,210.23,7.94]
[1759102554922,7.31,210.32,210.23,9.32853737]
[1759102555524,7.31,210.42,210.32,7.94]
[1759102555719,7.31,210.42,210.35,7.94]
[1759102557519,4.2755,210.41,210.35,7.94]
[1759102561128,7.31,210.39,210.32,9.32853737]
[1759102561817,8.69853737,210.39,210.32,7.94]
[1759102562120,8.69853737,210.39,210.28,120.658]
[1759102562121,7.31,210.38,210.29,7.94]
[1759102562319,123.67,210.38,210.29,7.94]
[1759102563426,123.67,210.38,210.3,4.2775]
[1759102564728,127.9462,210.38,210.3,4.2775]
[1759102565128,4.2765,210.36,210.29,7.94]
[1759102565330,7.31,210.35,210.29,7.94]
[1759102566023,7.31,210.4,210.29,7.94]
[1759102566223,25.9,210.42,210.31,2.1694597]
[1759102566424,7.31,210.41,210.33,7.94]
[1759102567130,69.6456,210.41,210.33,7.94]
[1759102568732,4.2758,210.4,210.33,7.94]
[1759102569026,65.37,210.41,210.33,7.94]
[1759102569223,66.5092,210.41,210.29,12.2179]
[1759102569424,7.31,210.39,210.29,12.2179]
[1759102569628,7.31,210.37,210.29,12.2179]
[1759102570837,4.2766,210.36,210.29,12.2179]
[1759102571134,4.2766,210.36,210.29,7.94]
[1759102571329,7.31,210.44,210.32,66.5358]
[1759102571533,7.31,210.49,210.35,2.1694597]
[1759102571830,57.88,210.48,210.39,7.73]
[1759102572035,84.82,210.48,210.39,7.73]
[1759102572332,7.82,210.47,210.39,7.73]
[1759102574235,12.0944,210.47,210.39,7.73]
[1759102574531,7.82,210.47,210.39,7.73]
[1759102574732,4.2746,210.46,210.39,7.73]
[1759102574931,124.44,210.47,210.39,7.73]
[1759102575327,7.82,210.46,210.36,66.2764]
[1759102575535,7.82,210.46,210.36,4.2764]
[1759102576227,80.68,210.45,210.36,4.2764]
[1759102576631,4.275,210.44,210.36,4.2764]
[1759102578735,83.66,210.45,210.37,7.73]
[1759102578934,7.82,210.46,210.37,7.73]
[1759102578935,110.54,210.46,210.37,7.73]
[1759102579935,114.8146,210.46,210.37,12.0062]
[1759102580634,7.82,210.46,210.37,7.73]
[1759102581438,7.82,210.44,210.34,7.73]
[1759102582342,4.2757,210.4,210.34,7.73]
[1759102584440,12.0953,210.42,210.34,7.73]
[1759102586433,7.65,210.4,210.34,7.73]
[1759102587036,7.65,210.38,210.29,7.72]
[1759102587630,7.65,210.35,210.25,7.72]
[1759102587832,124.17,210.35,210.25,7.72]
[1759102588032,74.1514,210.43,210.29,7.72]
[1759102588238,7.65,210.41,210.29,7.72]
[1759102588438,66.5146,210.39,210.29,7.72]
[1759102588637,124.65,210.38,210.29,7.72]
[1759102588842,117.0,210.37,210.29,7.72]
[1759102589345,4.2769,210.35,210.29,7.72]
[1759102589544,117.0,210.37,210.29,7.72]
[1759102590348,7.65,210.38,210.29,11.9978]
[1759102591647,11.9261,210.38,210.29,11.9978]
[1759102592746,11.9261,210.38,210.29,14.1672597]
[1759102593151,7.65,210.38,210.3,4.2775]
[1759102593753,7.65,210.38,210.31,7.72]
[1759102594652,7.65,210.38,210.31,11.9973]
[1759102595457,7.65,210.38,210.31,73.9973]
[1759102598559,7.65,210.38,210.32,7.72]
[1759102598758,7.65,210.42,210.34,11.9969]
[1759102599260,7.65,210.42,210.35,11.9965]
[1759102599861,7.65,210.42,210.36,4.2763]
[1759102600252,7.65,210.46,210.37,7.72]
[1759102601357,4.2748,210.44,210.37,7.72]
[1759102601659,7.65,210.46,210.37,7.72]
[1759102602562,11.9245,210.46,210.37,7.72]
[1759102602762,7.65,210.46,210.37,7.72]
[1759102603461,7.65,210.44,210.37,7.72]
[1759102606160,7.65,210.44,210.33,14.1664597]
[1759102606460,7.65,210.45,210.34,7.72]
[1759102607764,7.65,210.42,210.34,11.9967]
[1759102610565,7.65,210.45,210.37,7.72]
[1759102611365,124.39,210.45,210.37,7.72]
[1759102611962,7.65,210.45,210.37,7.72]
[1759102612163,124.53,210.45,210.37,7.72]
[1759102612467,7.65,210.43,210.37,7.72]
[1759102613569,11.9253,210.43,210.37,7.72]
[1759102613865,11.9253,210.43,210.35,4.2765]
[1759102614266,78.3653,210.43,210.35,4.2765]
[1759102614466,74.09,210.43,210.34,7.62]
[1759102614864,2.1694597,210.42,210.31,62.0]
[1759102615059,7.67,210.41,210.32,7.62]
[1759102615264,106.97,210.41,210.32,7.62]
[1759102615466,111.2455,210.41,210.32,7.62]
[1759102615666,7.67,210.41,210.34,7.62]
[1759102616269,7.67,210.41,210.34,11.8967]
[1759102619066,7.67,210.41,210.34,4.2767]
[1759102619260,7.67,210.41,210.35,7.62]
[1759102619859,4.275,210.44,210.35,4.2765]
[1759102620064,11.945,210.44,210.36,7.62]
[1759102620772,7.67,210.44,210.36,7.62]
[1759102620973,7.67,210.44,210.36,11.8963]
[1759102621472,11.945,210.44,210.36,11.8963]
[1759102621669,7.67,210.44,210.36,7.62]
[1759102622066,4.2752,210.43,210.36,7.62]
[1759102624278,4.2752,210.43,210.36,11.8963]
[1759102625985,7.67,210.44,210.37,4.2761]
[1759102626280,7.67,210.44,210.38,7.62]
[1759102626684,4.2747,210.45,210.38,7.62]
[1759102627677,4.275,210.44,210.38,7.62]
[1759102639588,7.67,210.45,210.38,11.896]
[1759102640292,7.67,210.45,210.38,4.276]
[1759102640494,7.67,210.45,210.39,7.28]
[1759102641686,11.9448,210.45,210.39,7.28]
[1759102644085,11.9448,210.45,210.4,7.53]
[1759102644484,7.68,210.44,210.39,4.2759]
[1759102644795,7.68,210.44,210.4,7.53]
[1759102644989,7.68,210.44,210.39,4.2759]
[1759102645195,7.68,210.44,210.4,7.53]
[1759102646186,7.68,210.44,210.39,5.66336758]
[1759102646390,4.2748,210.45,210.4,7.53]
[1759102646697,7.68,210.44,210.4,7.53]
[1759102648994,4.2748,210.45,210.4,7.53]
[1759102649194,7.68,210.44,210.4,7.53]
[1759102649393,7.68,210.44,210.39,1.38746758]
[1759102649796,4.2748,210.45,210.39,1.38746758]
[1759102649994,11.9548,210.45,210.39,8.91746758]
[1759102654492,7.68,210.43,210.39,7.53]
[1759102654698,9.06746758,210.49,210.39,7.53]
[1759102655091,4.2744,210.47,210.39,7.53]
[1759102655299,11.9544,210.47,210.39,7.53]
[1759102655608,11.9544,210.47,210.39,8.91746758]
[1759102655902,11.9544,210.47,210.4,7.53]
[1759102661701,4.2746,210.46,210.4,7.53]
[1759102661908,4.2746,210.46,210.39,5.66316758]
[1759102662299,11.9546,210.46,210.4,7.53]
[1759102673510,7.68,210.53,210.44,1.38746758]
[1759102673710,7.68,210.53,210.45,7.53]
[1759102674006,7.31,210.49,210.41,1.38746758]
[1759102674210,66.483,210.49,210.39,9.14746758]
[1759102674405,7.31,210.47,210.39,9.14746758]
[1759102674709,4.2748,210.45,210.39,9.14746758]
[1759102675301,7.31,210.47,210.39,9.14746758]
[1759102676809,11.5843,210.47,210.39,9.14746758]
[1759102677512,4.2746,210.46,210.39,9.14746758]
[1759102677711,11.5846,210.46,210.39,9.14746758]
[1759102677913,7.31,210.46,210.39,9.14746758]
[1759102678112,4.2748,210.45,210.39,9.14746758]
[1759102680213,7.31,210.46,210.4,4.2756]
[1759102681607,7.31,210.46,210.34,62.0]
[1759102681807,7.31,210.46,210.33,5.24327739]
[1759102681808,7.31,210.44,210.36,1.38746758]
[1759102682009,11.5849,210.44,210.36,1.38746758]
[1759102682210,7.31,210.44,210.38,1.38746758]
[1759102682416,7.31,210.44,210.39,7.76]
[1759102682715,39.1,210.46,210.38,1.38746758]
[1759102682716,7.31,210.45,210.38,9.14746758]
[1759102683110,30.44,210.48,210.38,9.14746758]
[1759102683317,7.31,210.47,210.38,9.14746758]
[1759102684110,7.31,210.47,210.4,1.38746758]
[1759102684316,7.31,210.47,210.4,9.14746758]
[1759102684915,7.31,210.47,210.4,71.14746758]
[1759102685118,7.31,210.47,210.41,7.76]
[1759102685620,7.31,210.47,210.41,12.0354]
[1759102685819,7.31,210.47,210.41,7.76]
[1759102688319,1.38746758,210.5,210.41,7.76]
[1759102688320,123.67,210.5,210.41,7.76]
[1759102688822,7.31,210.5,210.41,7.76]
[1759102689022,47.05,210.5,210.41,7.76]
[1759102689226,7.31,210.5,210.41,7.76]
[1759102690621,7.31,210.48,210.41,7.76]
[1759102692017,4.2742,210.48,210.4,62.0]
[1759102692220,7.21,210.47,210.38,7.57]
[1759102693716,4.2745,210.46,210.38,7.57]
[1759102693911,7.21,210.45,210.38,7.57]
[1759102698225,7.21,210.43,210.38,7.57]
[1759102698623,4.2751,210.44,210.38,7.57]
[1759102698824,7.21,210.43,210.38,7.57]
[1759102699426,7.21,210.42,210.35,7.57]
[1759102702623,4.2756,210.41,210.35,7.57]
[1759102703430,7.21,210.42,210.35,7.57]
[1759102704420,7.21,210.42,210.35,4.2765]
[1759102704623,7.21,210.42,210.36,7.37]
[1759102706631,7.21,210.42,210.37,7.37]
[1759102706926,4.2745,210.47,210.37,7.37]
[1759102707132,7.24,210.46,210.39,7.37]
[1759102707632,11.5139,210.49,210.4,7.37]
[1759102708433,11.5139,210.49,210.41,7.37]
[1759102710133,7.24,210.49,210.41,4.2753]
[1759102710433,7.24,210.49,210.42,7.37]
[1759102711736,7.24,210.49,210.42,11.6451]
[1759102712231,7.24,210.49,210.42,7.37]
[1759102716134,11.514,210.49,210.42,7.37]
[1759102717939,7.24,210.47,210.42,7.37]
[1759102718141,7.24,210.47,210.41,7.37]
[1759102719338,64.5533,210.52,210.41,7.37]
[1759102719533,7.24,210.51,210.41,7.37]
[1759102720235,11.5136,210.51,210.43,7.37]
[1759102721741,4.2738,210.5,210.43,7.37]
[1759102721930,7.24,210.49,210.43,7.37]
[1759102723528,4.2741,210.48,210.43,7.37]
[1759102723733,7.24,210.47,210.4,6.44292977]
[1759102723934,7.24,210.47,210.41,7.37]
[1759102728339,7.24,210.47,210.42,4.2753]
[1759102728639,11.5135,210.51,210.43,9.53732977]
[1759102728838,11.5135,210.51,210.44,7.37]
[1759102731637,11.5135,210.51,210.44,83.30527569]
[1759102731841,11.5135,210.51,210.44,69.37]
[1759102732934,4.2738,210.5,210.44,7.37]
[1759102733341,7.24,210.49,210.42,7.37]
[1759102733945,11.514,210.49,210.42,7.37]
[1759102734145,7.24,210.49,210.42,7.37]
[1759102734848,7.24,210.49,210.43,7.38]
[1759102735242,4.2737,210.5,210.41,7.38]
[1759102735434,12.1733,210.52,210.44,7.38]
[1759102735846,12.1733,210.52,210.44,69.38]
[1759102737951,4.2736,210.51,210.44,69.38]
[1759102738246,7.9,210.5,210.44,69.38]
[1759102738845,7.9,210.5,210.44,7.38]
[1759102739049,12.1738,210.5,210.44,7.38]
[1759102740354,7.9,210.48,210.44,7.38]
[1759102740549,66.4738,210.52,210.43,14.57643746]
[1759102740755,7.9,210.51,210.4,7.38]
[1759102741661,12.1743,210.47,210.4,7.38]
[1759102741852,7.9,210.47,210.42,7.38]
[1759102742151,7.9,210.47,210.41,4.2753]
[1759102742345,7.9,210.47,210.42,7.38]
[1759102742550,7.9,210.47,210.41,4.2753]
[1759102742752,7.9,210.47,210.42,7.38]
[1759102742954,4.274,210.49,210.42,7.38]
[1759102749371,7.9,210.48,210.42,7.38]
[1759102752278,11.5834,210.52,210.44,7.92]
[1759102752971,4.2736,210.51,210.44,7.92]
[1759102753365,7.31,210.52,210.44,7.92]
[1759102753869,11.5834,210.52,210.44,7.92]
[1759102754070,7.31,210.52,210.44,7.92]
[1759102754868,11.5832,210.52,210.44,7.92]
[1759102755065,7.31,210.5,210.44,7.92]
[1759102756575,4.2739,210.49,210.44,7.92]
[1759102756968,7.31,210.5,210.44,7.92]
[1759102758277,4.2742,210.48,210.42,7.92]
[1759102758878,7.31,210.49,210.42,7.92]
[1759102760177,7.31,210.49,210.42,9.30678424]
[1759102761071,7.31,210.49,210.42,7.92]
[1759102761266,7.31,210.49,210.42,9.30678424]
[1759102763878,4.2741,210.48,210.42,9.30678424]
[1759102764276,4.2741,210.48,210.42,7.92]
[1759102764779,7.31,210.49,210.42,7.92]
[1759102766582,13.47008424,210.52,210.43,7.32]
[1759102767775,4.2736,210.51,210.43,7.32]
[1759102767978,7.81,210.5,210.43,7.32]
[1759102768883,12.0838,210.5,210.43,7.32]
[1759102770190,4.2741,210.48,210.42,7.32]
[1759102777781,7.81,210.47,210.42,7.32]
[1759102777986,7.81,210.45,210.41,14.34269674]
[1759102778182,7.81,210.45,210.42,7.32]
[1759102778383,7.81,210.45,210.39,1.38678424]
[1759102778588,7.81,210.45,210.39,15.41227902]
[1759102778791,7.81,210.45,210.4,7.32]
[1759102779292,7.81,210.45,210.39,1.38678424]
[1759102779594,4.2741,210.49,210.41,4.2754]
[1759102779787,5.66088424,210.49,210.43,7.32]
[1759102784899,4.2741,210.49,210.43,7.32]
[1759102786299,12.0841,210.49,210.43,7.32]
[1759102787798,7.81,210.49,210.43,7.32]
[1759102788095,1.38678424,210.51,210.43,7.32]
[1759102788296,7.81,210.5,210.43,7.32]
[1759102789096,4.2739,210.49,210.43,7.32]
[1759102795308,4.2742,210.48,210.42,165.34105547]
[1759102795807,7.84,210.47,210.43,7.99]
[1759102796495,7.84,210.47,210.42,165.34105547]
[1759102797696,12.1144,210.47,210.42,165.34105547]
[1759102798699,7.84,210.47,210.42,103.34105547]
[1759102798901,67.87958424,210.46,210.42,103.34105547]
[1759102799098,1.38678424,210.43,210.39,14.13254905]
[1759102799298,7.84,210.42,210.37,7.99]
[1759102799508,1.38678424,210.43,210.37,7.99]
[1759102799905,7.84,210.42,210.37,14.51714716]
[1759102800100,7.84,210.42,210.34,7.99]
[1759102800696,12.1155,210.42,210.34,7.99]
[1759102800896,7.84,210.42,210.36,7.99]
[1759102801096,7.84,210.44,210.37,7.99]
[1759102801303,1.38678424,210.4,210.36,98.43487383]
[1759102801797,7.84,210.37,210.36,98.43487383]
[1759102801996,7.84,210.39,210.36,106.42487383]
[1759102802197,4.2757,210.4,210.36,98.43487383]
[1759102802407,12.1157,210.4,210.36,106.42487383]
[1759102802608,12.1157,210.4,210.37,7.99]
[1759102802909,12.1157,210.4,210.36,98.43487383]
[1759102803205,12.1157,210.4,210.37,7.99]
[1759102803597,12.1153,210.43,210.37,7.99]
[1759102804108,4.2753,210.43,210.37,9.37678424]
[1759102805397,12.1147,210.46,210.37,9.37678424]
[1759102806506,12.1147,210.46,210.4,7.99]
[1759102807004,12.1147,210.46,210.4,69.99]
[1759102807212,4.2741,210.48,210.42,7.99]
[1759102807411,98.48,210.49,210.42,7.99]
[1759102807904,102.754,210.49,210.42,7.99]
[1759102808304,12.114,210.49,210.42,7.99]
[1759102809610,116.14,210.51,210.41,7.99]
[1759102809611,12.1143,210.47,210.41,7.99]
[1759102810002,116.14,210.51,210.41,7.99]
[1759102810306,7.84,210.5,210.41,7.99]
[1759102811412,7.84,210.5,210.42,7.99]
[1759102815210,7.84,210.5,210.42,12.2651]
[1759102815413,7.84,210.5,210.43,7.89]
[1759102816410,12.2531,210.54,210.42,66.5052]
[1759102816615,7.98,210.54,210.45,7.89]
[1759102817117,7.98,210.54,210.48,7.89]
[1759102819314,7.98,210.58,210.49,7.89]
[1759102819819,12.2522,210.58,210.49,7.89]
[1759102820015,12.2522,210.58,210.51,7.89]
[1759102821217,12.2524,210.57,210.51,7.89]
[1759102821816,7.98,210.57,210.51,7.89]
[1759102825117,66.4428,210.62,210.51,7.89]
[1759102825322,7.83,210.61,210.51,12.1635]
[1759102825619,116.08,210.63,210.52,69.49]
[1759102825823,7.83,210.62,210.52,69.49]
[1759102826014,4.2718,210.6,210.52,69.49]
[1759102826216,7.83,210.59,210.52,69.49]
[1759102826416,66.4455,210.61,210.52,69.49]
[1759102826614,4.2723,210.57,210.52,7.49]
[1759102826811,66.4455,210.61,210.52,7.49]
[1759102826812,7.83,210.59,210.52,7.49]
[1759102827423,7.83,210.65,210.54,7.49]
[1759102827619,7.83,210.65,210.57,7.49]
[1759102828622,4.2701,210.68,210.59,2.16681845]
[1759102828828,4.2701,210.68,210.6,7.49]
[1759102830728,7.83,210.69,210.6,7.49]
[1759102833333,7.83,210.69,210.61,7.49]
[1759102838829,4.2706,210.66,210.61,7.49]
[1759102839028,7.83,210.64,210.56,7.49]
[1759102839231,74.2668,210.64,210.53,8.31240047]
[1759102839534,9.99681845,210.62,210.53,22.30438022]
[1759102839834,2.16681845,210.58,210.53,0.82240047]
[1759102840027,184.64271845,210.58,210.46,38.64258024]
[1759102840429,7.83,210.57,210.46,38.64258024]
[1759102840636,184.64271845,210.58,210.46,100.64258024]
[1759102840937,7.83,210.53,210.46,62.0]
[1759102841527,7.83,210.51,210.45,7.49]
[1759102841932,95.72681845,210.52,210.43,14.11261273]
[1759102842132,7.83,210.49,210.42,7.49]
[1759102842837,7.83,210.49,210.36,147.23487383]
[1759102842838,7.83,210.47,210.36,105.92487383]
[1759102843035,87.0,210.46,210.36,105.92487383]
[1759102843234,7.83,210.45,210.36,7.49]
[1759102844031,4.275,210.44,210.36,7.49]
[1759102844425,7.83,210.45,210.36,7.49]
[1759102844426,7.83,210.45,210.37,7.49]
[1759102844935,25.5744,210.47,210.37,7.49]
[1759102845238,7.83,210.46,210.37,7.49]
[1759102845439,7.83,210.44,210.33,11.7671]
[1759102846238,7.83,210.44,210.34,7.49]
[1759102847937,7.83,210.44,210.35,62.0]
[1759102848236,7.83,210.44,210.36,7.49]
[1759102850039,7.83,210.48,210.36,7.49]
[1759102850745,7.83,210.46,210.36,7.49]
[1759102852651,7.83,210.46,210.37,62.0]
[1759102853051,7.83,210.46,210.38,7.49]
[1759102856351,7.83,210.46,210.33,14.30178861]
[1759102856550,7.39,210.46,210.35,7.6]
[1759102857646,4.275,210.44,210.35,7.6]
[1759102857943,7.39,210.43,210.35,7.6]
[1759102859638,11.6653,210.43,210.35,7.6]
[1759102860043,11.6653,210.43,210.35,69.6]
[1759102862243,7.39,210.43,210.36,7.6]
[1759102866141,4.2751,210.44,210.36,7.6]
[1759102866342,88.3444,210.47,210.36,7.6]
[1759102866750,84.07,210.47,210.38,7.6]
[1759102866952,4.2746,210.46,210.38,7.6]
[1759102867246,7.39,210.47,210.38,7.6]
[1759102868348,11.6644,210.47,210.38,7.6]
[1759102868550,7.39,210.47,210.38,7.6]
[1759102868750,9.55681845,210.47,210.38,7.6]
[1759102869754,11.6653,210.43,210.39,7.6]
[1759102870348,7.39,210.42,210.35,69.6]
[1759102870955,1.38772313,210.44,210.36,7.6]
[1759102872755,1.38772313,210.44,210.38,7.78]
[1759102872961,5.66272313,210.44,210.38,7.78]
[1759102873160,9.36772313,210.44,210.38,7.78]
[1759102874061,4.2753,210.43,210.38,7.78]
[1759102874262,7.98,210.42,210.38,7.78]
[1759102874451,7.98,210.42,210.35,66.2766]
[1759102874656,7.98,210.42,210.36,12.0564]
[1759102875956,1.38772313,210.44,210.36,12.0564]
[1759102876157,7.98,210.43,210.37,7.78]
[1759102876965,12.2552,210.43,210.37,7.78]
[1759102877265,7.98,210.43,210.37,7.78]
[1759102877659,4.2748,210.45,210.38,7.78]
[1759102877858,7.98,210.47,210.38,7.78]
[1759102878368,1.38772313,210.49,210.41,7.78]
[1759102878564,7.98,210.51,210.42,1.38772313]
[1759102878869,7.98,210.51,210.43,7.78]
[1759102879469,5.66082313,210.53,210.45,7.78]
[1759102880358,7.98,210.52,210.45,7.78]
[1759102880565,7.98,210.49,210.41,9.16772313]
[1759102880859,1.38772313,210.5,210.41,9.16772313]
[1759102881068,5.66152313,210.5,210.41,9.16772313]
[1759102881564,5.66152313,210.5,210.42,62.0]